[Event "World Junior U20 Open 2018"]
[Site "Gebze"]
[Date "2018.09.14"]
[Round "10.51"]
[White "Nogerbek, Kazybek"]
[Black "Huber, Martin Christian"]
[Result "1-0"]
[ECO "B82"]
[WhiteElo "2261"]
[BlackElo "2390"]
[Annotator "NA"]
[PlyCount "109"]
[EventDate "2018.09.05"]
[EventType "swiss"]
[EventCountry "TUR"]
[SourceTitle "playchess.com"]
[Source "ChessBase"]
[SourceQuality "1"]
[TimeControl "40/5400+30:1800+30"]

1. e4 c5 2. Nf3 e6 3. d4 cxd4 4. Nxd4 Nc6 5. Nc3 Qc7 6. Be3 a6 7. a3 Nf6 8. f4 d6 9. Qf3 h5 10. O-O-O Bd7 11. h3 h4 {[%emt 0:22:30]} 12. Bd3 {[%emt 0:20:00]} Rc8 {[%emt 0:00:30]} 13. Rhe1 {[%emt 0:00:30]} Be7 {[%emt 0:04:30]} 14. Qf2 {[%emt 0:03:30]} b5 $16 {[%emt 0:04:30]} 15. Nxc6 {[%emt 0:03:30]} Bxc6 {[%emt 0:03:30]} 16. g4 {[%emt 0:05:30]} hxg3 {[%emt 0:03:30]} 17. Qxg3 {[%emt 0:02:30]} Qb7 {[%emt 0:10:30]} 18. e5 {[%emt 0:13:30]} Nh5 {[%emt 0:14:30]} 19. Qf2 {[%emt 0:03:30]} b4 {[%emt 0:04:30]} 20. axb4 {[%emt 0:04:30]} Qxb4 {[%emt 0:02:30]} 21. exd6 {[%emt 0:03:30]} Bxd6 {[%emt 0:01:30]} 22. Bd4 {[%emt 0:16:30]} Bxf4+ {[%emt 0:09:50]} 23. Kb1 {[%emt 0:00:00]} O-O {[%emt 0:12:37]} 24. Bc5 {[%emt 0:01:00]} Qb7 {[%emt 0:00:38]} 25. Bxf8 {[%emt 0:01:30]} Rxf8 {[%emt 0:00:44]} 26. Qh4 {[%emt 0:06:47]} g6 {[%emt 0:01:22]} 27. Be4 {[%emt 0:04:16]} Bg3 {[%emt 0:02:00]} 28. Bxc6 {[%emt 0:00:40]} Qxc6 {[%emt 0:00:30]} 29. Qe4 {[%emt 0:00:00]} Qb6 {[%emt 0:01:10]} 30. Rf1 {[%emt 0:00:26]} f5 {[%emt 0:01:43]} 31. Qc4 {[%emt 0:00:20]} Ng7 {[%emt 0:00:48]} 32. Rd7 {[%emt 0:02:45]} Be5 {[%emt 0:00:22]} 33. Na4 {[%emt 0:01:51]} Qe3 {[%emt 0:00:07]} 34. Qd3 {[%emt 0:01:27]} Qxd3 {[%emt 0:00:56]} 35. cxd3 {[%emt 0:01:07]} Rb8 {[%emt 0:00:48]} 36. d4 {[%emt 0:02:11]} Bf6 {[%emt 0:00:11]} 37. Nc5 {[%emt 0:00:09]} Rb6 {[%emt 0:00:26]} 38. Kc2 {[%emt 0:01:06]} e5 {[%emt 0:00:31]} 39. dxe5 {[%emt 0:01:46]} Bxe5 {[%emt 0:00:07]} 40. Nd3 {[%emt 0:00:00]} Bf6 {[%emt 0:00:00]} 41. Ra1 {[%emt 0:08:09]} Ne6 {[%emt 0:02:10]} 42. Ra7 {[%emt 0:01:30]} Rc6+ {[%emt 0:09:30]} 43. Kb1 {[%emt 0:02:30]} Nc7 {[%emt 0:00:30]} 44. Nb4 {[%emt 0:03:30]} Rc4 {[%emt 0:04:34]} 45. Nxa6 {[%emt 0:00:00]} Nd5 {[%emt 0:00:22]} 46. Rd7 {[%emt 0:04:43]} Rd4 {[%emt 0:01:23]} 47. Rb7 {[%emt 0:03:49]} Nf4 {[%emt 0:12:05]} 48. Ra3 {[%emt 0:02:48]} Nd3 {[%emt 0:02:11]} 49. Rc3 {[%emt 0:02:51]} Rd8 {[%emt 0:01:38]} 50. Rc6 {[%emt 0:00:12]} Bxb2 {[%emt 0:00:44]} 51. Rxg6+ {[%emt 0:00:29]} Kf8 {[%emt 0:00:12]} 52. Nb8 {[%emt 0:01:41]} Rxb8 {[%emt 0:03:18]} 53. Rxb8+ {[%emt 0:00:06]} Kf7 {[%emt 0:00:00]} 54. Rd6 {[%emt 0:00:11]} Be5 {[%emt 0:00:14]} 55. Rb7+ {[%emt 0:00:30]} 1-0

[Event "World Junior U20 Open 2018"]
[Site "Gebze"]
[Date "2018.09.14"]
[Round "10.52"]
[White "Miciano, John Marvin"]
[Black "Noboa, Kevin"]
[Result "0-1"]
[ECO "C11"]
[WhiteElo "2374"]
[BlackElo "2256"]
[Annotator "ChessBase"]
[PlyCount "66"]
[EventDate "2018.09.05"]
[EventType "swiss"]
[EventCountry "TUR"]
[SourceTitle "playchess.com"]
[Source "ChessBase"]
[SourceQuality "1"]
[TimeControl "40/5400+30:1800+30"]

1. e4 e6 2. d4 d5 3. Nc3 Nf6 4. e5 Nfd7 5. f4 c5 6. Nf3 Be7 7. Be3 b6 8. Qd2 O-O 9. O-O-O c4 10. f5 b5 11. Bg5 b4 12. Bxe7 Qxe7 13. Nb5 Nc6 {[%emt 0:16:30]} 14. b3 {[%emt 0:35:00]} c3 {[%emt 0:30:30]} 15. Qe3 {[%emt 0:07:30]} a5 {[%emt 0:06:30]} 16. Bd3 {[%emt 0:21:30]} a4 {[%emt 0:02:30]} 17. Kb1 {[%emt 0:01:30]} axb3 {[%emt 0:02:30]} 18. cxb3 {[%emt 0:00:00]} exf5 {[%emt 0:00:30]} 19. h3 {[%emt 0:18:45]} Nf6 {[%emt 0:01:30]} 20. g4 {[%emt 0:01:24]} Ne4 {[%emt 0:01:30]} 21. Rhg1 {[%emt 0:02:03]} fxg4 {[%emt 0:06:30]} 22. Bxe4 {[%emt 0:09:08]} dxe4 {[%emt 0:00:30]} 23. Ng5 {[%emt 0:00:17]} Bf5 {[%emt 0:03:30]} 24. hxg4 {[%emt 0:00:40]} c2+ {[%emt 0:01:30]} 25. Kxc2 {[%emt 0:00:52]} Rxa2+ {[%emt 0:00:30]} 26. Kb1 {[%emt 0:00:47]} Rfa8 {[%emt 0:00:00]} 27. Rc1 {[%emt 0:00:00]} Bg6 {[%emt 0:03:00]} 28. Rge1 {[%emt 0:02:48]} h6 {[%emt 0:01:30]} 29. Nxe4 {[%emt 0:00:48]} Qe6 {[%emt 0:00:30]} 30. Nbd6 {[%emt 0:01:19]} Nxd4 {[%emt 0:01:30]} 31. Rc8+ {[%emt 0:00:37]} Qxc8 {[%emt 0:00:30]} 32. Nxc8 {[%emt 0:00:30]} Ra1+ {[%emt 0:00:30]} 33. Kb2 {[%emt 0:00:00]} R8a2# {[%emt 0:00:00]} 0-1

[Event "World Junior U20 Open 2018"]
[Site "Gebze"]
[Date "2018.09.14"]
[Round "10.53"]
[White "Arcuti, Davide"]
[Black "Erdogan, Anil Berk"]
[Result "1-0"]
[ECO "A61"]
[WhiteElo "2356"]
[BlackElo "2083"]
[Annotator "ChessBase"]
[PlyCount "79"]
[EventDate "2018.09.05"]
[EventType "swiss"]
[EventCountry "TUR"]
[SourceTitle "playchess.com"]
[Source "ChessBase"]
[SourceQuality "1"]
[TimeControl "40/5400+30:1800+30"]

1. d4 Nf6 2. c4 c5 3. d5 e6 4. Nc3 exd5 5. cxd5 d6 6. Nf3 g6 7. Bf4 a6 8. a4 Bg7 9. h3 O-O 10. e3 Ne8 11. Be2 Nd7 12. O-O Rb8 13. Qb3 Qe7 14. Rfe1 h6 {[%emt 0:18:00]} 15. Nd2 {[%emt 0:24:30]} g5 {[%emt 0:09:30]} 16. Bh2 {[%emt 0:00:30]} Ne5 {[%emt 0:00:30]} 17. Bxa6 {[%emt 0:16:30]} g4 {[%emt 0:22:30]} 18. hxg4 {[%emt 0:05:30]} Nxg4 {[%emt 0:14:30]} 19. Bg3 {[%emt 0:03:30]} Nef6 {[%emt 0:03:30]} 20. Be2 {[%emt 0:05:30]} Nh5 {[%emt 0:05:30]} 21. Bxg4 {[%emt 0:01:30]} Bxg4 {[%emt 0:00:30]} 22. Bh2 {[%emt 0:01:30]} Kh8 {[%emt 0:09:10]} 23. Nc4 {[%emt 0:09:30]} Qg5 {[%emt 0:03:01]} 24. Ne4 {[%emt 0:08:30]} Qg6 {[%emt 0:09:00]} 25. Ng3 {[%emt 0:02:30]} Rg8 {[%emt 0:00:51]} 26. Nxh5 {[%emt 0:10:10]} Bxh5 {[%emt 0:01:36]} 27. Bg3 {[%emt 0:01:38]} Rbe8 {[%emt 0:04:02]} 28. Nxd6 {[%emt 0:05:53]} Re5 {[%emt 0:00:56]} 29. Nc4 {[%emt 0:00:46]} Rg5 {[%emt 0:00:32]} 30. d6 {[%emt 0:03:43]} Bf6 {[%emt 0:00:46]} 31. Qxb7 {[%emt 0:02:37]} Rxg3 {[%emt 0:00:37]} 32. fxg3 {[%emt 0:00:00]} Qxg3 {[%emt 0:00:19]} 33. Rf1 {[%emt 0:00:51]} Be5 {[%emt 0:00:36]} 34. Nxe5 {[%emt 0:00:34]} Qxe5 {[%emt 0:00:30]} 35. Qe7 {[%emt 0:00:48]} Qd5 {[%emt 0:00:33]} 36. Rf2 {[%emt 0:00:19]} Bg4 {[%emt 0:00:26]} 37. Qxf7 {[%emt 0:00:45]} Be6 {[%emt 0:00:18]} 38. Qf4 {[%emt 0:00:40]} Rg6 {[%emt 0:00:41]} 39. a5 {[%emt 0:00:38]} Bh3 {[%emt 0:00:35]} 40. Qf8+ {[%emt 0:00:00]} 1-0

[Event "World Junior U20 Open 2018"]
[Site "Gebze"]
[Date "2018.09.14"]
[Round "10.54"]
[White "Rodrigue-Lemieux, Shawn"]
[Black "Nastase, Robert-Paul"]
[Result "1-0"]
[ECO "C05"]
[WhiteElo "2250"]
[BlackElo "2313"]
[Annotator "ChessBase"]
[PlyCount "103"]
[EventDate "2018.09.05"]
[EventType "swiss"]
[EventCountry "TUR"]
[SourceTitle "playchess.com"]
[Source "ChessBase"]
[SourceQuality "1"]
[TimeControl "40/5400+30:1800+30"]

1. e4 e6 2. d4 d5 3. Nd2 Nf6 4. e5 Nfd7 5. f4 c5 6. c3 Nc6 7. Ndf3 Qb6 8. g3 Be7 9. h4 a5 10. a3 cxd4 11. cxd4 {[%emt 0:09:30]} h5 {[%emt 0:32:30]} 12. Ne2 {[%emt 0:00:30]} Ndb8 {[%emt 0:00:30]} 13. Nc3 {[%emt 0:06:30]} g6 {[%emt 0:03:30]} 14. Rh2 {[%emt 0:03:30]} Bd7 {[%emt 0:00:30]} 15. Be3 {[%emt 0:04:30]} Na7 {[%emt 0:08:30]} 16. Bd3 {[%emt 0:02:30]} Qd8 {[%emt 0:06:30]} 17. Qc2 {[%emt 0:13:30]} Rg8 {[%emt 0:03:30]} 18. Qe2 {[%emt 0:00:30]} Bc6 {[%emt 0:04:30]} 19. Ng5 {[%emt 0:05:30]} Qd7 {[%emt 0:00:30]} 20. g4 {[%emt 0:02:30]} hxg4 {[%emt 0:00:30]} 21. Qxg4 {[%emt 0:00:30]} Na6 {[%emt 0:01:30]} 22. Rg2 {[%emt 0:11:30]} O-O-O {[%emt 0:24:21]} 23. Nxf7 {[%emt 0:01:30]} Bxh4+ {[%emt 0:00:30]} 24. Qxh4 {[%emt 0:00:00]} Qxf7 {[%emt 0:00:00]} 25. Kd2 {[%emt 0:03:00]} b5 {[%emt 0:10:37]} 26. Rag1 {[%emt 0:02:30]} Qb7 {[%emt 0:00:22]} 27. Rxg6 {[%emt 0:06:30]} Rxg6 {[%emt 0:00:04]} 28. Rxg6 {[%emt 0:00:00]} b4 {[%emt 0:00:05]} 29. axb4 {[%emt 0:01:00]} Nxb4 {[%emt 0:00:43]} 30. Qf6 {[%emt 0:23:52]} Nxd3 {[%emt 0:00:34]} 31. Kxd3 {[%emt 0:01:20]} Qxb2 {[%emt 0:01:23]} 32. Qxe6+ {[%emt 0:00:25]} Kb8 {[%emt 0:00:05]} 33. Bd2 {[%emt 0:02:17]} Qb6 {[%emt 0:01:11]} 34. Ke3 {[%emt 0:01:01]} a4 {[%emt 0:00:58]} 35. Nxa4 {[%emt 0:00:50]} Qb1 {[%emt 0:01:50]} 36. Nc3 {[%emt 0:00:40]} Qf1 {[%emt 0:00:04]} 37. Qg4 {[%emt 0:00:48]} Bb5 {[%emt 0:01:22]} 38. Nxb5 {[%emt 0:00:42]} Nxb5 {[%emt 0:00:31]} 39. Qe6 {[%emt 0:00:38]} Nc7 {[%emt 0:00:59]} 40. Qb6+ {[%emt 0:01:07]} Kc8 {[%emt 0:00:00]} 41. Ba5 {[%emt 0:17:45]} Qc1+ {[%emt 0:01:21]} 42. Ke2 {[%emt 0:02:33]} Qc2+ {[%emt 0:00:30]} 43. Kf3 {[%emt 0:00:38]} Qd1+ {[%emt 0:00:30]} 44. Kf2 {[%emt 0:00:24]} Qc2+ {[%emt 0:00:30]} 45. Kg3 {[%emt 0:01:39]} Qd3+ {[%emt 0:00:30]} 46. Kg4 {[%emt 0:01:29]} Qe2+ {[%emt 0:01:30]} 47. Kg5 {[%emt 0:00:50]} Qg2+ {[%emt 0:01:30]} 48. Kf6 {[%emt 0:01:07]} Ne8+ {[%emt 0:00:30]} 49. Ke7 {[%emt 0:02:41]} Rd7+ {[%emt 0:00:30]} 50. Kxe8 {[%emt 0:02:39]} Re7+ {[%emt 0:00:00]} 51. Kxe7 {[%emt 0:00:25]} Qg5+ {[%emt 0:00:00]} 52. Qf6 {[%emt 0:00:00]} 1-0

[Event "World Junior U20 Open 2018"]
[Site "Gebze"]
[Date "2018.09.14"]
[Round "10.55"]
[White "Milosevic, Milos"]
[Black "Daghan, Devran"]
[Result "1-0"]
[ECO "B23"]
[WhiteElo "2292"]
[BlackElo "2004"]
[Annotator "NA"]
[PlyCount "65"]
[EventDate "2018.09.05"]
[EventType "swiss"]
[EventCountry "TUR"]
[SourceTitle "playchess.com"]
[Source "ChessBase"]
[SourceQuality "1"]
[TimeControl "40/5400+30:1800+30"]

1. e4 {[%emt 0:00:30]} c5 {[%emt 0:01:30]} 2. Nc3 {[%emt 0:00:30]} Nc6 {[%emt 0:00:30]} 3. Bb5 {[%emt 0:00:30]} g6 {[%emt 0:00:30]} 4. Bxc6 {[%emt 0:00:30]} bxc6 {[%emt 0:00:30]} 5. f4 {[%emt 0:05:30]} Bg7 {[%emt 0:00:30]} 6. Nf3 {[%emt 0:00:30]} Nf6 {[%emt 0:00:30]} 7. O-O {[%emt 0:00:30]} O-O {[%emt 0:00:30]} 8. d3 {[%emt 0:01:30]} d6 {[%emt 0:00:30]} 9. h3 {[%emt 0:01:30] B23: Closed Sicilian: Lines without g3} (9. Kh1 Bg4 10. Qe1 Bxf3 11. Rxf3 Rb8 12. b3 Nd7 13. f5 Ne5 14. Rf1 e6 15. Bd2 Kh8 16. Qg3 Qe7 {½-½ (41) Tiviakov,S (2591)-Lu,S (2640) Paramaribo 2017}) 9... Ne8 {[%emt 0:00:30]} 10. f5 $146 {[%emt 0:03:30]} ({Predecessor:} 10. Be3 Rb8 11. Na4 Qa5 12. c3 Nc7 {½-½ (12) Silva (2367)-Manaenkov,V (2346) ICCF email 2010}) 10... gxf5 {[%emt 0:26:00]} 11. Qe1 {[%emt 0:15:30]} fxe4 {[%emt 0:00:30]} 12. dxe4 {[%emt 0:00:30]} Ba6 {[%emt 0:08:30]} 13. Rf2 {[%emt 0:01:30]} Nc7 {[%emt 0:06:30]} 14. Kh1 {[%emt 0:01:30]} Ne6 {[%emt 0:07:30]} 15. Nh2 {[%emt 0:04:30]} Nd4 {[%emt 0:14:30]} 16. Nd1 {[%emt 0:06:30]} Bc8 {[%emt 0:07:30]} 17. c3 {[%emt 0:00:30]} Qa5 {[%emt 0:03:30]} 18. b4 {[%emt 0:04:30]} cxb4 {[%emt 0:02:30]} 19. cxd4 {[%emt 0:00:30]} Bxd4 {[%emt 0:00:00]} 20. Rb1 {[%emt 0:02:30]} Bxf2 {[%emt 0:09:43]} 21. Qxf2 {[%emt 0:02:30]} Qh5 {[%emt 0:01:32]} 22. Ne3 {[%emt 0:01:30]} a5 {[%emt 0:00:30]} 23. Nhg4 {[%emt 0:01:30]} Bxg4 {[%emt 0:10:39]} 24. Nxg4 {[%emt 0:00:00]} f6 {[%emt 0:00:08]} 25. Rb3 $11 {[%emt 0:06:00]} c5 {[%emt 0:01:12]} 26. Rf3 {[%emt 0:00:30]} c4 {[%emt 0:01:37]} 27. Bh6 {[%emt 0:01:30]} c3 {[%emt 0:00:30]} 28. Rg3 {[%emt 0:02:30]} Kh8 {[%emt 0:00:25]} 29. e5 {[%emt 0:06:30]} dxe5 {[%emt 0:00:38]} 30. Qf3 {[%emt 0:03:30]} c2 {[%emt 0:00:24]} 31. Kh2 {[%emt 0:07:30]} Qxh6 {[%emt 0:01:07]} 32. Nxh6 {[%emt 0:00:30]} c1=Q {[%emt 0:00:00]} 33. Nf7+ {[%emt 0:00:30]} 1-0

[Event "World Junior U20 Open 2018"]
[Site "Gebze"]
[Date "2018.09.14"]
[Round "10.56"]
[White "Silva, David"]
[Black "Garidmagnai, Byambasuren"]
[Result "0-1"]
[ECO "A46"]
[WhiteElo "2223"]
[BlackElo "2287"]
[Annotator "NA"]
[PlyCount "94"]
[EventDate "2018.09.05"]
[EventType "swiss"]
[EventCountry "TUR"]
[SourceTitle "playchess.com"]
[Source "ChessBase"]
[SourceQuality "1"]
[TimeControl "40/5400+30:1800+30"]

1. Nf3 Nf6 2. g3 d6 3. d4 b5 {A46: 1 d4 Nf6 2 Nf3 e6: Torre, London and Colle Systems} (3... Nbd7 4. Bg2 e5 5. c4 c6 6. Nc3 e4 7. Nh4 d5 8. O-O Bb4 9. cxd5 cxd5 10. f3 Bxc3 11. bxc3 O-O 12. Ba3 Re8 13. Nf5 Nb6 14. Nd6 Nc4 15. Nxc4 dxc4 16. fxe4 Nxe4 {1-0 (34) Aronian,L (2767)-Grischuk,A (2766) Saint Louis 2018}) 4. Bg2 Bb7 5. O-O Nbd7 6. a4 {[%emt 0:04:00]} b4 {[%emt 0:05:00]} 7. a5 {[%emt 0:00:30]} Rb8 {[%emt 0:00:30]} 8. c4 $146 {[%emt 0:00:30]} ({Predecessor:} 8. c3 e6 9. Qa4 Ba6 10. Re1 Bb5 11. Qc2 {½-½ (81) Sakharov,Y-Katalymov,B Moscow (Russia) 1967}) 8... bxc3 {[%emt 0:04:30]} 9. Nxc3 {[%emt 0:01:30]} e6 {[%emt 0:01:30]} 10. Ne1 {[%emt 0:02:30]} Bxg2 {[%emt 0:01:30]} 11. Nxg2 {[%emt 0:00:30]} d5 {[%emt 0:00:30]} 12. Qd3 {[%emt 0:03:30]} Bb4 {[%emt 0:00:30]} 13. Bf4 {[%emt 0:01:30]} Nh5 {[%emt 0:00:30]} 14. Bd2 {[%emt 0:00:30]} O-O {[%emt 0:00:30]} 15. Na4 {[%emt 0:00:30]} Bd6 {[%emt 0:00:30]} 16. Rfc1 {[%emt 0:00:30]} Nhf6 {[%emt 0:21:00]} 17. Bf4 {[%emt 0:21:30]} Ne4 {[%emt 0:12:30]} 18. Nc3 {[%emt 0:08:30]} Bxf4 {[%emt 0:02:30]} 19. Nxf4 {[%emt 0:06:30]} Nd6 {[%emt 0:00:30]} 20. Na4 {[%emt 0:02:30]} Nc4 {[%emt 0:02:30]} 21. Qc3 {[%emt 0:01:30]} c6 {[%emt 0:03:30]} 22. Nd3 {[%emt 0:02:30]} Nxa5 {[%emt 0:09:30]} 23. Nac5 {[%emt 0:00:00]} Nxc5 {[%emt 0:01:30]} 24. Nxc5 $11 {[%emt 0:00:00]} Nc4 {[%emt 0:00:00]} 25. b3 {[%emt 0:03:30]} Nd6 {[%emt 0:00:00]} 26. e3 {[%emt 0:00:30]} Nb5 {[%emt 0:08:30]} 27. Qa5 {[%emt 0:05:30]} Qd6 {[%emt 0:05:30]} 28. Ra2 {[%emt 0:00:30]} f6 {[%emt 0:01:30]} 29. Rac2 {[%emt 0:00:30]} e5 {[%emt 0:03:30]} 30. Nd3 {[%emt 0:04:30]} Rb6 {[%emt 0:04:30]} 31. dxe5 {[%emt 0:00:30]} fxe5 {[%emt 0:00:00]} 32. Nb4 {[%emt 0:01:30]} Rc8 {[%emt 0:00:00]} 33. Rc5 {[%emt 0:00:30]} Rc7 {[%emt 0:01:30]} 34. Na6 {[%emt 0:02:30]} Rc8 {[%emt 0:02:30]} 35. Nb4 {[%emt 0:00:30]} d4 {[%emt 0:02:30]} 36. Nd5 {[%emt 0:06:30]} Rbb8 {[%emt 0:00:30]} 37. e4 {[%emt 0:00:00]} Kh8 {[%emt 0:05:23]} 38. b4 {[%emt 0:01:00]} d3 {[%emt 0:02:29]} 39. Qa6 {[%emt 0:00:30]} d2 {[%emt 0:00:49]} 40. Rd1 {[%emt 0:05:30]} Nd4 {[%emt 0:00:00]} 41. Nc3 {[%emt 0:01:30]} Rf8 {[%emt 0:04:49]} 42. Kg2 {[%emt 0:01:30]} Rxb4 {[%emt 0:05:30]} 43. Qa5 {[%emt 0:03:30]} Rb2 {[%emt 0:00:30]} 44. Rc4 {[%emt 0:04:30]} Qf6 {[%emt 0:03:30]} 45. f4 {[%emt 0:00:00]} exf4 {[%emt 0:01:30]} 46. e5 {[%emt 0:00:00]} f3+ {[%emt 0:00:30]} 47. Kh1 {[%emt 0:01:30]} Qf5 {[%emt 0:05:30]} 0-1

[Event "World Junior U20 Open 2018"]
[Site "Gebze"]
[Date "2018.09.14"]
[Round "10.57"]
[White "Sezdbekov, Ruslan"]
[Black "Cadilhac, Igor Tokuichi Kikuc"]
[Result "1/2-1/2"]
[ECO "B50"]
[WhiteElo "2160"]
[BlackElo "2286"]
[Annotator "ChessBase"]
[PlyCount "182"]
[EventDate "2018.09.05"]
[EventType "swiss"]
[EventCountry "TUR"]
[SourceTitle "playchess.com"]
[Source "ChessBase"]
[SourceQuality "1"]
[TimeControl "40/5400+30:1800+30"]

1. e4 c5 2. Nf3 d6 3. c3 Nf6 4. Be2 g6 5. O-O Bg7 6. Qc2 O-O 7. d4 Qc7 8. h3 cxd4 9. Nxd4 Nc6 10. Be3 d5 {[%emt 0:20:00]} 11. Nb5 {[%emt 0:22:30]} Qb8 {[%emt 0:00:30]} 12. Nd2 {[%emt 0:02:30]} dxe4 {[%emt 0:10:30]} 13. Nxe4 {[%emt 0:00:30]} Nd5 {[%emt 0:01:30]} 14. Bc4 {[%emt 0:06:30]} Nxe3 {[%emt 0:01:30]} 15. fxe3 {[%emt 0:00:30]} Bf5 {[%emt 0:13:30]} 16. Nd4 {[%emt 0:09:30]} Qe5 {[%emt 0:01:30]} 17. Bd3 {[%emt 0:07:30]} Rac8 {[%emt 0:03:30]} 18. a3 {[%emt 0:03:30]} Rfd8 {[%emt 0:21:30]} 19. Kh1 {[%emt 0:02:30]} Bxe4 {[%emt 0:04:30]} 20. Bxe4 {[%emt 0:00:30]} f5 {[%emt 0:02:43]} 21. Bxc6 {[%emt 0:12:30]} bxc6 {[%emt 0:00:09]} 22. Rae1 {[%emt 0:06:30]} Qg3 {[%emt 0:04:50]} 23. Nf3 {[%emt 0:00:30]} Bh6 {[%emt 0:06:18]} 24. e4 {[%emt 0:04:30]} Bf4 {[%emt 0:00:01]} 25. Rd1 {[%emt 0:00:00]} Rf8 {[%emt 0:02:43]} 26. Rd7 {[%emt 0:05:13]} Rc7 {[%emt 0:00:23]} 27. Rdd1 {[%emt 0:03:51]} Kh8 {[%emt 0:00:35]} 28. b4 {[%emt 0:02:11]} Bd6 {[%emt 0:01:05]} 29. Kg1 {[%emt 0:00:55]} c5 {[%emt 0:01:01]} 30. Qd3 {[%emt 0:01:12]} Rcc8 {[%emt 0:01:52]} 31. Rde1 {[%emt 0:01:06]} fxe4 {[%emt 0:01:30]} 32. Rxe4 {[%emt 0:00:14]} Rf4 {[%emt 0:00:10]} 33. Rxf4 {[%emt 0:01:22]} Qxf4 {[%emt 0:00:09]} 34. Re1 {[%emt 0:00:21]} Rf8 {[%emt 0:00:28]} 35. Qe4 {[%emt 0:01:16]} Qg3 {[%emt 0:00:31]} 36. Rd1 {[%emt 0:00:36]} Kg7 {[%emt 0:02:09]} 37. Qe3 {[%emt 0:02:44]} Rf5 {[%emt 0:00:56]} 38. Qe4 {[%emt 0:02:02]} Rf8 {[%emt 0:00:29]} 39. Qe3 {[%emt 0:00:51]} Rf5 {[%emt 0:00:00]} 40. Qe4 {[%emt 0:00:00]} Rf7 {[%emt 0:00:00]} 41. Qe3 {[%emt 0:03:36]} cxb4 {[%emt 0:04:58]} 42. axb4 {[%emt 0:00:30]} Rf4 {[%emt 0:01:30]} 43. Qf2 {[%emt 0:02:30]} Rc4 {[%emt 0:01:30]} 44. Qxg3 {[%emt 0:01:30]} Bxg3 {[%emt 0:00:30]} 45. Rd3 {[%emt 0:01:30]} Rc8 {[%emt 0:08:34]} 46. Kf1 {[%emt 0:00:30]} h5 {[%emt 0:00:30]} 47. Ke2 {[%emt 0:00:30]} h4 {[%emt 0:00:30]} 48. Kd2 {[%emt 0:01:30]} Kf6 {[%emt 0:00:02]} 49. Rd5 {[%emt 0:01:30]} e5 {[%emt 0:01:08]} 50. Ra5 {[%emt 0:00:30]} Rc7 {[%emt 0:03:39]} 51. Kd3 {[%emt 0:03:30]} g5 {[%emt 0:04:35]} 52. b5 {[%emt 0:03:30]} Bf2 {[%emt 0:02:40]} 53. b6 {[%emt 0:02:32]} Bxb6 {[%emt 0:01:20]} 54. Rxe5 {[%emt 0:00:06]} Rg7 {[%emt 0:01:50]} 55. Ke4 {[%emt 0:00:40]} g4 {[%emt 0:01:01]} 56. Rf5+ {[%emt 0:01:49]} Ke7 {[%emt 0:00:12]} 57. Nxh4 {[%emt 0:00:29]} gxh3 {[%emt 0:01:04]} 58. gxh3 {[%emt 0:00:03]} Rg1 {[%emt 0:00:56]} 59. Kd5 {[%emt 0:01:19]} Rd1+ {[%emt 0:02:12]} 60. Kc4 {[%emt 0:00:10]} Ke6 {[%emt 0:00:23]} 61. Rf4 {[%emt 0:00:48]} Rh1 {[%emt 0:00:37]} 62. Nf3 {[%emt 0:00:31]} Bc7 {[%emt 0:00:31]} 63. Re4+ {[%emt 0:01:02]} Kf5 {[%emt 0:00:31]} 64. Re7 {[%emt 0:03:37]} Bb6 {[%emt 0:00:01]} 65. h4 {[%emt 0:00:00]} Rh3 {[%emt 0:01:29]} 66. Nd4+ {[%emt 0:04:54]} Kf6 {[%emt 0:02:38]} 67. Re6+ {[%emt 0:01:00]} Kf7 {[%emt 0:00:11]} 68. Re4 {[%emt 0:00:13]} Ba5 {[%emt 0:00:16]} 69. Rf4+ {[%emt 0:00:52]} Ke8 {[%emt 0:00:10]} 70. Nf3 {[%emt 0:00:18]} Bc7 {[%emt 0:00:30]} 71. Rf5 {[%emt 0:00:16]} Kd7 {[%emt 0:00:48]} 72. Kd5 {[%emt 0:00:38]} Bd8 {[%emt 0:01:17]} 73. h5 {[%emt 0:00:14]} Rh1 {[%emt 0:00:25]} 74. Rf7+ {[%emt 0:04:31]} Ke8 {[%emt 0:00:02]} 75. Rh7 {[%emt 0:00:00]} Bf6 {[%emt 0:00:33]} 76. Ke6 {[%emt 0:01:13]} Bxc3 {[%emt 0:00:27]} 77. Rxa7 {[%emt 0:01:47]} Kf8 {[%emt 0:00:14]} 78. Rc7 {[%emt 0:00:39]} Ba5 {[%emt 0:00:42]} 79. Rc5 {[%emt 0:00:25]} Bb6 {[%emt 0:00:39]} 80. Rg5 {[%emt 0:01:03]} Rf1 {[%emt 0:01:36]} 81. Ne5 {[%emt 0:01:01]} Re1 {[%emt 0:00:11]} 82. Kf5 {[%emt 0:01:11]} Bd4 {[%emt 0:00:15]} 83. Nf3 {[%emt 0:00:27]} Rf1 {[%emt 0:00:30]} 84. Kg4 {[%emt 0:00:00]} Bg7 {[%emt 0:00:26]} 85. Rg6 {[%emt 0:00:39]} Rh1 {[%emt 0:00:42]} 86. Ng5 {[%emt 0:00:21]} Rg1+ {[%emt 0:00:24]} 87. Kf3 {[%emt 0:00:10]} Rf1+ {[%emt 0:00:45]} 88. Kg2 {[%emt 0:00:07]} Rf5 {[%emt 0:00:23]} 89. Ne6+ {[%emt 0:01:28]} Kf7 {[%emt 0:00:04]} 90. Nxg7 {[%emt 0:00:00]} Rxh5 {[%emt 0:00:09]} 91. Rg4 {[%emt 0:00:00]} Rh6 {[%emt 0:00:20]} 1/2-1/2

[Event "World Junior U20 Open 2018"]
[Site "Gebze"]
[Date "2018.09.14"]
[Round "10.58"]
[White "Ongut, Tamas Gunes"]
[Black "Amartuvshin, Ganzorig"]
[Result "0-1"]
[ECO "B48"]
[WhiteElo "2121"]
[BlackElo "2280"]
[Annotator "NA"]
[PlyCount "74"]
[EventDate "2018.09.05"]
[EventType "swiss"]
[EventCountry "TUR"]
[SourceTitle "playchess.com"]
[Source "ChessBase"]
[SourceQuality "1"]
[TimeControl "40/5400+30:1800+30"]

1. e4 {[%emt 0:00:30]} c5 {[%emt 0:00:30]} 2. Nf3 {[%emt 0:00:30]} e6 {[%emt 0:00:00]} 3. d4 {[%emt 0:00:30]} cxd4 {[%emt 0:00:00]} 4. Nxd4 {[%emt 0:00:00]} Nc6 {[%emt 0:00:00]} 5. Nc3 {[%emt 0:00:00]} Qc7 {[%emt 0:00:00]} 6. Be3 {[%emt 0:00:30]} a6 {[%emt 0:00:30]} 7. Qf3 {[%emt 0:00:30]} d6 {[%emt 0:00:30]} 8. O-O-O {[%emt 0:00:30]} Bd7 {[%emt 0:00:30]} 9. Qg3 {[%emt 0:02:30]} Nf6 {[%emt 0:02:30]} 10. f3 {[%emt 0:00:30]} Rc8 {[%emt 0:00:30]} 11. h4 {[%emt 0:00:30]} b5 {[%emt 0:06:30]} 12. Nxc6 {[%emt 0:08:30]} Bxc6 {[%emt 0:00:30]} 13. a3 {[%emt 0:26:30]} Qb7 {[%emt 0:15:30]} 14. Kb1 $11 {[%emt 0:13:30]} a5 {[%emt 0:03:30]} 15. Bd3 {[%emt 0:06:30]} b4 {[%emt 0:09:30]} 16. axb4 {[%emt 0:00:30]} axb4 {[%emt 0:01:30]} 17. Ne2 {[%emt 0:00:30]} e5 {[%emt 0:01:30]} 18. Nc1 {[%emt 0:06:30]} Be7 {[%emt 0:02:30]} 19. Nb3 {[%emt 0:01:30]} Bd7 {[%emt 0:03:30]} 20. Qe1 {[%emt 0:02:30]} O-O {[%emt 0:03:30]} 21. Qe2 {[%emt 0:04:30]} Ra8 {[%emt 0:04:30]} 22. g4 {[%emt 0:00:30]} Be6 {[%emt 0:01:30]} 23. Bc4 {[%emt 0:00:30]} d5 {[%emt 0:02:30]} 24. exd5 {[%emt 0:07:30]} Nxd5 {[%emt 0:00:30]} 25. Bg5 {[%emt 0:07:30]} Nc3+ {[%emt 0:17:30]} 26. bxc3 {[%emt 0:00:30]} bxc3 {[%emt 0:00:30]} 27. Qd3 {[%emt 0:08:59]} Qb4 {[%emt 0:01:30]} 28. Bxe7 {[%emt 0:00:45]} Qxe7 {[%emt 0:00:30]} 29. Bxe6 {[%emt 0:01:25]} Qb4 {[%emt 0:05:30]} 30. Qd6 {[%emt 0:10:36]} Qa4 {[%emt 0:00:30]} 31. Bxf7+ {[%emt 0:00:08]} Rxf7 {[%emt 0:00:30]} 32. Qd8+ {[%emt 0:00:10]} Rxd8 {[%emt 0:00:30]} 33. Rxd8+ {[%emt 0:00:31]} Rf8 {[%emt 0:00:30]} 34. Rxf8+ {[%emt 0:00:00]} Kxf8 {[%emt 0:00:00]} 35. Kc1 {[%emt 0:00:00]} Qf4+ {[%emt 0:00:00]} 36. Kb1 {[%emt 0:00:28]} Qxf3 {[%emt 0:00:30]} 37. Rc1 {[%emt 0:00:00]} e4 {[%emt 0:00:30]} 0-1